bitfinex-derivatives/quotes_SOLF0:USTF0_20250528
["timestamp","ask_amount","ask_price","bid_price","bid_amount"]
[1748460708594,29.96,170.02,169.93,10.84459929]
[1748460708796,0.0381669,169.99,169.96,0.04516125]
[1748460711497,5.8818,169.97,169.96,0.04516125]
[1748460711702,0.0381669,169.99,169.96,0.04516125]
[1748460713999,5.8815,169.98,169.96,0.04516125]
[1748460715102,5.9193669,169.99,169.96,5.92726125]
[1748460715599,5.9193669,169.99,169.96,0.04516125]
[1748460716802,5.8815,169.98,169.96,0.04516125]
[1748460717002,0.0381669,169.99,169.96,0.04516125]
[1748460717400,5.8815,169.98,169.96,0.04516125]
[1748460717597,0.0381669,169.99,169.96,0.04516125]
[1748460718099,5.8818,169.97,169.96,0.04516125]
[1748460721006,5.8832,169.93,169.9,5.884]
[1748460722009,0.04439847,169.93,169.91,5.8839]
[1748460722709,0.04439847,169.93,169.9,0.04172527]
[1748460723301,5.8839,169.91,169.9,0.04172527]
[1748460726109,0.04439847,169.93,169.9,0.04172527]
[1748460727117,5.8837,169.92,169.9,0.04172527]
[1748460727311,0.04439847,169.93,169.9,0.04172527]
[1748460727814,5.8839,169.91,169.9,0.04172527]
[1748460728216,0.04439847,169.93,169.9,0.04172527]
[1748460728713,5.92779847,169.93,169.9,0.04172527]
[1748460729514,5.8836,169.92,169.9,0.04172527]
[1748460730013,5.92769847,169.93,169.9,0.04172527]
[1748460731518,5.92769847,169.93,169.9,5.92592527]
[1748460732417,0.04439847,169.93,169.9,5.92592527]
[1748460733315,5.92759847,169.93,169.9,5.92592527]
[1748460734023,0.04439847,169.93,169.91,5.8838]
[1748460734315,0.04439847,169.93,169.9,0.04172527]
[1748460735718,0.04439847,169.93,169.92,5.8835]
[1748460741420,0.04439847,169.93,169.91,5.8838]
[1748460741730,0.04439847,169.93,169.9,0.04172527]
[1748460742326,0.04439847,169.93,169.91,5.8838]
[1748460742530,0.04439847,169.93,169.9,0.04172527]
[1748460743231,31.9203,170.0,169.9,0.04172527]
[1748460744225,0.04521285,169.97,169.9,0.04172527]
[1748460744629,5.8827,169.95,169.92,5.8833]
[1748460745025,0.04521285,169.97,169.92,5.8833]
[1748460745523,0.04521285,169.97,169.91,5.8838]
[1748460746132,5.8829,169.94,169.92,5.8835]
[1748460746328,0.04521285,169.97,169.9,0.04172527]
[1748460746630,5.8826,169.95,169.92,5.8833]
[1748460749034,5.8829,169.94,169.91,5.8837]
[1748460749232,0.04521285,169.97,169.9,0.04172527]
[1748460750931,5.8827,169.95,169.92,5.8833]
[1748460751533,5.8827,169.95,169.9,0.04172527]
[1748460752133,5.8827,169.95,169.92,5.8833]
[1748460752541,5.8829,169.94,169.92,5.8833]
[1748460752838,5.8829,169.94,169.91,5.8837]
[1748460753037,5.8832,169.93,169.9,0.04172527]
[1748460753334,5.92493039,169.93,169.91,5.8839]
[1748460753635,0.04173039,169.93,169.9,0.04172527]
[1748460754338,0.04173039,169.93,169.9,5.92592527]
[1748460754339,5.8837,169.92,169.9,5.92592527]
[1748460756033,5.92503039,169.93,169.91,5.8838]
[1748460756239,0.04173039,169.93,169.9,0.04172527]
[1748460756635,0.04173039,169.93,169.92,5.8835]
[1748460760937,0.04173039,169.93,169.91,5.8838]
[1748460761441,0.04173039,169.93,169.9,30.06172527]
[1748460762636,1.9003,170.0,169.91,10.84459929]
[1748460762943,32.0141,170.02,169.96,5.8819]
[1748460763149,5.8811,170.0,169.96,5.8819]
[1748460763635,5.8811,170.0,169.97,5.8817]
[1748460763838,5.92244376,170.0,169.96,0.04064401]
[1748460764141,5.8811,169.99,169.96,5.92264401]
[1748460767849,5.8811,169.99,169.97,5.8817]
[1748460769146,5.8811,169.99,169.96,5.92264401]
[1748460769756,0.04134376,170.0,169.96,0.04064401]
[1748460771953,0.04134376,170.0,169.98,5.8813]
[1748460773652,0.04134376,170.0,169.99,5.8811]
[1748460776658,1.9076,170.07,169.98,29.92]
[1748460777062,3.9092,170.07,169.98,29.92]
[1748460777266,5.8805,170.01,169.98,35.8012]
[1748460777564,5.91973601,170.01,169.98,35.84295876]
[1748460778061,5.91973601,170.01,169.99,5.881]
[1748460778458,0.03923601,170.01,169.99,5.881]
[1748460780563,0.03923601,170.01,169.98,29.96175876]
[1748460781470,0.03923601,170.01,170.0,5.8808]
[1748460782358,29.92,170.08,170.03,5.8796]
[1748460782665,5.8788,170.06,169.98,29.92]
[1748460783464,5.8788,170.06,170.03,5.8794]
[1748460783465,0.04265304,170.04,170.03,5.8794]
[1748460785378,0.04265304,170.04,170.02,29.92]
[1748460785674,0.04265304,170.04,170.0,0.04238694]
[1748460785970,5.8804,170.01,170.0,0.04238694]
[1748460786568,0.04265304,170.04,170.0,0.04238694]
[1748460787067,5.88,170.03,170.0,0.04238694]
[1748460788473,5.92205304,170.04,170.0,0.04238694]
[1748460788969,5.92205304,170.04,170.01,5.8804]
[1748460789169,5.92205304,170.04,170.0,0.04238694]
[1748460789672,5.92205304,170.04,170.0,5.92298694]
[1748460790171,5.8797,170.03,170.0,5.92298694]
[1748460790970,5.8797,170.03,170.0,0.04238694]
[1748460791171,5.8801,170.02,170.0,0.04238694]
[1748460791776,5.8804,170.01,170.0,0.04238694]
[1748460792366,0.04265304,170.04,170.0,0.04238694]
[1748460793074,5.92235304,170.04,170.0,0.04238694]
[1748460793372,0.04265304,170.04,170.0,0.04238694]
[1748460793870,0.04265304,170.04,170.03,5.8797]
[1748460803078,0.04265304,170.04,170.02,5.8799]
[1748460803477,0.04265304,170.04,170.01,29.92]
[1748460803674,0.04265304,170.04,170.03,5.8797]
[1748460804580,0.04265304,170.04,170.01,29.92]
[1748460804773,5.8799,170.03,170.01,29.92]
[1748460804976,5.8799,170.03,170.0,0.04238694]
[1748460805574,5.92215304,170.04,170.01,5.8804]
[1748460805781,0.04265304,170.04,170.0,0.04238694]
[1748460806676,5.8801,170.02,170.0,0.04238694]
[1748460807979,0.04265304,170.04,170.0,0.04238694]
[1748460807980,5.8804,170.01,170.0,0.04238694]
[1748460808179,0.04265304,170.04,170.0,0.04238694]
[1748460810473,5.8803,170.02,170.0,0.04238694]
[1748460810678,0.04265304,170.04,170.0,0.04238694]
[1748460811578,0.04265304,170.04,170.01,5.8802]
[1748460811783,0.04265304,170.04,170.0,0.04238694]
[1748460812175,5.8798,170.03,170.0,5.92298694]
[1748460812375,5.8798,170.03,170.0,0.04238694]
[1748460812781,0.04265304,170.04,170.02,5.88]
[1748460813179,0.04265304,170.04,170.0,0.04238694]
[1748460813383,5.92225304,170.04,170.01,5.8801]
[1748460813588,0.04265304,170.04,170.0,0.04238694]
[1748460813879,0.04265304,170.04,170.02,5.8799]
[1748460814274,0.04265304,170.04,170.0,0.04238694]
[1748460815073,5.8804,170.01,170.0,0.04238694]
[1748460820491,0.04265304,170.04,170.0,0.04238694]
[1748460821388,5.8799,170.03,170.0,5.92308694]
[1748460824183,0.04265304,170.04,170.0,0.04238694]
[1748460824580,5.8804,170.02,170.0,0.04238694]
[1748460825386,5.8804,170.02,170.0,5.92288694]
[1748460825990,5.8804,170.02,170.0,0.04238694]
[1748460826589,5.8804,170.01,170.0,0.04238694]
[1748460828389,0.04265304,170.04,170.0,0.04238694]
[1748460829298,5.8799,170.03,170.0,5.92288694]
[1748460829488,0.04265304,170.04,170.0,5.92288694]
[1748460830094,5.8798,170.03,170.0,5.92288694]
[1748460830297,0.04265304,170.04,170.0,0.04238694]
[1748460830789,10.84459929,170.13,170.0,10.88698623]
[1748460830990,29.92,170.12,170.0,12.93059929]
[1748460831188,29.92,170.12,170.07,5.8783]
[1748460831395,29.92,170.12,170.03,29.92]
[1748460831889,0.03904495,170.09,170.06,0.03897785]
[1748460832895,0.03904495,170.09,170.07,5.8783]
[1748460833401,0.03904495,170.09,170.08,5.878]
[1748460834499,0.03904495,170.09,170.07,5.8782]
[1748460835402,0.03904495,170.09,170.08,5.878]
[1748460835794,0.03904495,170.09,170.06,0.03897785]
[1748460835995,0.03904495,170.09,170.07,5.8782]
[1748460836798,0.03904495,170.09,170.06,5.91747785]
[1748460837600,0.03904495,170.09,170.07,5.8783]
[1748460837900,5.91674495,170.09,170.06,0.03897785]
[1748460838095,0.03904495,170.09,170.06,0.03897785]
[1748460838500,5.8783,170.07,170.06,0.03897785]
[1748460838701,5.8783,170.07,170.0,31.986]
[1748460838702,0.03904495,170.09,170.0,29.9]
[1748460838893,29.9,170.08,170.0,29.9]
[1748460839297,29.9,170.08,170.02,5.8801]
[1748460839603,5.8795,170.04,170.0,29.9]
[1748460839802,5.91675305,170.04,170.0,29.93930251]
[1748460840198,5.91675305,170.04,170.01,5.8803]
[1748460840704,5.91675305,170.04,170.02,5.88]
[1748460840705,0.03725305,170.04,170.02,5.88]
[1748460841398,5.91675305,170.04,170.01,5.8803]
[1748460841600,0.03725305,170.04,170.0,29.93930251]
[1748460842099,0.03725305,170.04,170.02,5.88]
[1748460842904,0.03725305,170.04,170.01,5.8803]
[1748460843298,5.91665305,170.04,170.01,5.8803]
[1748460844005,0.03725305,170.04,170.0,29.93930251]
[1748460844206,0.03725305,170.04,170.0,0.03930251]
[1748460845916,5.8798,170.03,170.0,0.03930251]
[1748460846703,5.8802,170.02,170.0,0.03930251]
[1748460846906,0.03725305,170.04,170.0,0.03930251]
[1748460847108,40.78185234,170.04,170.0,0.03930251]
[1748460847797,29.93725305,170.04,170.0,0.03930251]
[1748460851010,0.03725305,170.04,170.0,0.03930251]
[1748460851407,5.8335,170.11,170.0,4.17930251]
[1748460851408,35.7976,170.1,170.0,4.17930251]
[1748460851608,29.92,170.1,170.0,6.0832]
[1748460852010,5.8776,170.09,170.0,6.0832]
[1748460852408,0.04347293,170.06,170.03,0.03862878]
[1748460852904,0.04347293,170.06,170.05,5.879]
[1748460857715,0.04347293,170.06,170.04,5.8792]
[1748460858312,0.04347293,170.06,170.03,0.03862878]
[1748460859210,5.92217293,170.06,170.03,0.03862878]
[1748460860604,5.8794,170.04,170.03,0.03862878]
[1748460860811,0.04347293,170.06,170.03,0.03862878]
[1748460862313,5.92247293,170.06,170.03,0.03862878]
[1748460863617,0.04347293,170.06,170.03,0.03862878]
[1748460864016,0.04347293,170.06,170.04,5.8794]
[1748460866211,0.04347293,170.06,170.03,5.91822878]
[1748460866416,0.04347293,170.06,170.03,0.03862878]
[1748460868617,0.04347293,170.06,170.03,5.91832878]
[1748460872319,0.04347293,170.06,170.03,0.03862878]
[1748460872827,29.9,170.13,170.1,5.8773]
[1748460873221,29.9,170.16,170.1,5.8773]
[1748460873419,29.9,170.16,170.09,5.8775]
[1748460873621,29.9,170.16,170.11,0.03897438]
[1748460874422,5.8762,170.14,170.11,0.03897438]
[1748460878827,5.8763,170.13,170.11,0.03897438]
[1748460879221,29.9,170.16,170.11,0.03897438]
[1748460880341,5.8762,170.14,170.11,0.03897438]
[1748460882431,5.8757,170.15,170.11,0.03897438]
[1748460883223,5.8757,170.15,170.11,5.91587438]
[1748460884136,35.7754,170.16,170.12,5.8766]
[1748460884337,29.9,170.16,170.12,5.8766]
[1748460884527,35.7754,170.16,170.12,5.8766]
[1748460885239,29.9,170.16,170.13,5.8762]
[1748460885434,29.9,170.16,170.11,0.03897438]
[1748460885827,29.9,170.16,170.13,5.8761]
[1748460886735,29.9,170.16,170.14,5.8759]
[1748460887040,29.9,170.19,170.14,5.8759]
[1748460887334,29.9,170.19,170.15,0.03835622]
[1748460887532,5.8746,170.18,170.15,0.03835622]
[1748460888038,35.7743,170.19,170.15,0.03835622]
[1748460888432,29.9,170.19,170.15,0.03835622]
[1748460889240,35.7744,170.19,170.15,5.91375622]
[1748460890043,5.8746,170.18,170.15,0.03835622]
[1748460891235,29.9,170.19,170.15,0.03835622]
[1748460891937,5.8748,170.18,170.15,0.03835622]
[1748460892545,35.7743,170.19,170.15,5.91385622]
[1748460892835,29.9,170.19,170.15,0.03835622]
[1748460894137,5.8747,170.18,170.15,0.03835622]
[1748460896639,35.7744,170.19,170.15,5.91385622]
[1748460900550,5.8746,170.18,170.15,5.91385622]
[1748460900946,5.8746,170.18,170.15,0.03835622]
[1748460901444,29.9,170.19,170.15,0.03835622]
[1748460901641,10.84459929,170.17,170.15,0.03835622]
[1748460901836,10.84459929,170.17,170.08,29.9]
[1748460902046,5.8767,170.12,170.08,5.8778]
[1748460902742,5.8767,170.12,170.08,5.91581417]
[1748460902743,5.92147939,170.12,170.08,5.91581417]
[1748460903843,0.04477939,170.12,170.08,0.03801417]
[1748460904048,29.88,170.11,170.08,0.03801417]
[1748460904246,40.72459929,170.11,170.04,5.8794]
[1748460904854,5.8783,170.08,170.05,5.879]
[1748460905239,5.92189576,170.08,170.05,0.03756911]
[1748460905442,0.04359576,170.08,170.05,0.03756911]
[1748460906047,5.8788,170.06,170.05,0.03756911]
[1748460906650,5.8796,170.04,170.0,5.8806]
[1748460906957,29.88,170.07,169.96,29.88]
[1748460907245,5.8801,170.03,169.96,29.88]
[1748460907645,0.04505715,170.01,169.98,0.03807072]
[1748460907847,0.04505715,170.01,169.99,5.8811]
[1748460908042,0.04505715,170.01,169.98,0.03807072]
[1748460908451,0.04505715,170.01,169.98,5.91937072]
[1748460908955,0.04505715,170.01,169.99,5.8812]
[1748460909250,0.04505715,170.01,169.98,0.03807072]
[1748460909846,0.04505715,170.01,169.99,5.8809]
[1748460910049,0.04505715,170.01,169.98,0.03807072]
[1748460910555,0.04505715,170.01,170.0,5.8808]
[1748460910850,29.88,170.07,169.98,0.03807072]
[1748460911256,29.88,170.07,170.04,5.8792]
[1748460911753,29.88,170.07,169.96,40.72459929]
[1748460911952,0.04459014,170.03,170.0,0.03740369]
[1748460912455,0.04459014,170.03,170.02,5.8801]
[1748460916453,0.04459014,170.03,170.0,0.03740369]
[1748460917555,0.04459014,170.03,170.02,5.8801]
[1748460920958,0.04459014,170.03,170.0,0.03740369]
[1748460921659,0.04459014,170.03,170.01,5.8803]
[1748460921858,0.04459014,170.03,170.0,0.03740369]
[1748460922060,0.04459014,170.03,170.01,5.8805]
[1748460922564,0.04459014,170.03,170.0,5.91800369]
[1748460923060,5.92449014,170.03,170.0,5.91800369]
[1748460924270,0.04459014,170.03,170.0,0.03740369]
[1748460925067,5.92449014,170.03,170.0,5.91800369]
[1748460927669,0.04459014,170.03,170.0,0.03740369]
[1748460927862,29.92459014,170.03,170.0,0.03740369]
[1748460928165,5.8802,170.02,170.0,5.91820369]
[1748460928369,29.92459014,170.03,170.0,5.91820369]
[1748460928570,29.92459014,170.03,170.0,0.03740369]
[1748460929672,29.92459014,170.03,169.89,10.84459929]
[1748460929964,29.88,170.03,169.9,31.8948]
[1748460930558,5.8811,170.0,169.97,5.8817]
[1748460930763,5.92224451,170.0,169.97,5.92400336]
[1748460931060,5.8813,169.99,169.97,0.04230336]
[1748460931661,5.8816,169.98,169.97,0.04230336]
[1748460931863,29.88,169.99,169.97,0.04230336]
[1748460932274,35.7615,169.99,169.97,0.04230336]
[1748460933372,5.8816,169.98,169.97,0.04230336]
[1748460935775,29.88,169.99,169.97,0.04230336]
[1748460936777,5.8816,169.98,169.97,0.04230336]
[1748460940181,5.8827,169.95,169.9,31.8948]
[1748460940384,5.8827,169.95,169.92,5.8835]
[1748460940579,10.84459929,169.98,169.92,5.8835]
[1748460940774,5.883,169.94,169.87,29.9]
[1748460940975,10.84459929,169.98,169.92,5.8836]
[1748460941179,0.04369454,169.97,169.93,0.04275114]
[1748460941978,0.04369454,169.97,169.94,5.8829]
[1748460942379,0.04369454,169.97,169.93,0.04275114]
[1748460943790,0.04369454,169.97,169.94,5.8829]
[1748460943981,0.04369454,169.97,169.93,0.04275114]
[1748460944287,5.92569454,169.97,169.94,5.8829]
[1748460944788,5.8825,169.96,169.93,5.92595114]
[1748460945284,29.9,169.95,169.89,5.8846]
[1748460945484,10.84459929,169.94,169.85,1.9036]
[1748460945689,12.74359929,169.94,169.85,1.9036]
[1748460945987,5.8847,169.9,169.82,1.9646]
[1748460946375,0.04145245,169.88,169.84,0.03895682]
[1748460948184,0.04145245,169.88,169.87,5.8854]
[1748460948388,0.04145245,169.88,169.84,0.03895682]
[1748460948985,35.7856,169.87,169.84,0.03895682]
[1748460949187,29.9,169.87,169.84,0.03895682]
[1748460950383,35.7857,169.87,169.84,0.03895682]
[1748460950793,35.7857,169.87,169.84,5.92535682]
[1748460950988,35.7857,169.87,169.84,0.03895682]
[1748460951187,5.8858,169.86,169.84,0.03895682]
[1748460951391,40.74459929,169.87,169.84,0.03895682]
[1748460951891,5.8861,169.85,169.84,0.03895682]
[1748460953489,5.8876,169.81,169.76,1.9093]
[1748460953696,5.8876,169.81,169.75,31.9958]
[1748460953896,5.8876,169.81,169.78,5.8882]
[1748460954097,5.8873,169.82,169.78,5.8882]
[1748460954392,5.92873229,169.82,169.78,5.92688163]
[1748460955892,5.8875,169.81,169.78,5.92688163]
[1748460956086,0.04143229,169.82,169.78,0.03868163]
[1748460956796,5.8876,169.81,169.78,0.03868163]
[1748460956999,5.8876,169.81,169.78,5.92718163]
[1748460957193,5.8876,169.81,169.78,0.03868163]
[1748460957497,5.8879,169.8,169.78,0.03868163]
[1748460958291,5.8882,169.79,169.78,0.03868163]
[1748460959393,29.9,169.79,169.71,4.1566]
[1748460959696,29.9,169.79,169.73,5.8902]
[1748460959996,5.8891,169.77,169.73,5.8902]
[1748460960199,29.9,169.79,169.73,5.8902]
[1748460960391,29.9,169.79,169.71,4.1566]
[1748460960392,0.03779876,169.78,169.74,0.04065044]
[1748460960593,10.88239805,169.78,169.74,0.04065044]
[1748460960790,12.92199805,169.78,169.66,29.9]
[1748460960993,12.88419929,169.78,169.66,29.9]
[1748460961496,10.84459929,169.75,169.68,5.8917]
[1748460961699,10.84459929,169.72,169.63,36.0287]
[1748460961896,29.9,169.71,169.63,36.0287]
[1748460962198,29.9,169.71,169.63,34.046]
[1748460962699,29.9,169.71,169.57,29.9]
[1748460962898,0.04443666,169.66,169.62,0.04294997]
[1748460963294,5.93713666,169.66,169.63,5.8937]
[1748460963498,0.04443666,169.66,169.62,0.04294997]
[1748460963996,0.04443666,169.66,169.53,10.84459929]
[1748460963997,10.88903595,169.66,169.53,10.84459929]
[1748460964195,10.84459929,169.66,169.54,4.0042]
[1748460964400,5.8944,169.62,169.56,5.8961]
[1748460964699,29.9,169.63,169.54,4.0042]
[1748460964902,5.8957,169.58,169.52,7.8967]
[1748460965095,5.8957,169.58,169.44,29.9]
[1748460965096,29.9,169.59,169.46,10.84459929]
[1748460965401,29.9,169.59,169.47,1.9992]
[1748460965590,29.9,169.59,169.46,10.84459929]
[1748460965591,5.8961,169.57,169.52,5.8975]
[1748460965790,29.9,169.59,169.48,29.9]
[1748460966096,0.04422532,169.55,169.52,0.04525889]
[1748460966295,29.9,169.65,169.53,39.60004864]
[1748460966493,29.9,169.65,169.6,5.8947]
[1748460966803,29.9,169.65,169.54,3.9259]
[1748460967397,0.04297969,169.61,169.58,0.03922376]
[1748460967904,0.04297969,169.61,169.59,5.8948]
[1748460968099,0.04297969,169.61,169.58,0.03922376]
[1748460968300,0.04297969,169.61,169.6,5.8948]
[1748460970199,29.92,169.68,169.6,5.9]
[1748460970401,29.92,169.71,169.61,29.92]
[1748460970704,5.8913,169.7,169.65,5.8928]
[1748460971206,0.04271973,169.69,169.66,0.04372668]
[1748460972806,5.8928,169.66,169.6,5.8947]
[1748460973005,29.92,169.67,169.6,5.8947]
[1748460973397,5.8931,169.65,169.6,5.8947]
[1748460973707,29.92,169.67,169.61,0.04177559]
[1748460973708,0.04028304,169.64,169.61,0.04177559]
[1748460974205,5.894,169.63,169.61,0.04177559]
[1748460974603,5.8941,169.62,169.61,0.04177559]
[1748460976518,29.92,169.63,169.61,0.04177559]
[1748460977007,0.04028304,169.64,169.61,0.04177559]
[1748460977810,0.04028304,169.64,169.63,5.8937]
[1748460980004,0.04028304,169.64,169.62,5.894]
[1748460980704,0.04028304,169.64,169.63,5.8937]
[1748460981216,0.04028304,169.64,169.61,0.04177559]
[1748460981707,0.04028304,169.64,169.63,5.8937]
[1748460981909,29.92,169.69,169.61,0.04177559]
[1748460982912,5.8921,169.68,169.64,5.8932]
[1748460983112,0.03749887,169.67,169.64,5.93716581]
[1748460983813,5.92989887,169.67,169.64,5.93716581]
[1748460984212,0.03749887,169.67,169.64,0.04396581]
[1748460984513,5.8927,169.66,169.64,0.04396581]
[1748460984909,5.893,169.65,169.64,0.04396581]
[1748460985716,5.8945,169.61,169.57,1.9067]
[1748460985915,29.92,169.65,169.58,5.8952]
[1748460986117,5.8943,169.62,169.58,5.8952]
[1748460986315,29.92,169.65,169.58,5.8952]
[1748460986517,29.92,169.65,169.59,5.8951]
[1748460986713,0.04415767,169.64,169.6,0.03836259]
[1748460987307,5.894,169.63,169.6,0.03836259]
[1748460987514,0.04415767,169.64,169.6,0.03836259]
[1748460988117,5.8938,169.63,169.6,0.03836259]
[1748460988317,5.8938,169.63,169.6,5.93306259]
[1748460988519,0.04415767,169.64,169.6,0.03836259]
[1748460989212,5.8943,169.62,169.6,0.03836259]
[1748460989417,0.04415767,169.64,169.6,0.03836259]
[1748460990223,2.05215767,169.64,169.6,0.03836259]
[1748460990522,5.8944,169.61,169.6,0.03836259]
[1748460990723,47.07603952,169.61,169.41,509.18]
[1748460990915,4.0069,169.6,169.43,3.9073]
[1748460991119,16.15603952,169.58,169.43,3.9073]
[1748460991317,32.4,169.57,169.43,3.9073]
[1748460991823,0.03912191,169.52,169.48,0.04237372]
[1748460992223,0.03912191,169.52,169.5,5.8981]
[1748460992425,0.03912191,169.52,169.48,0.04237372]
[1748460994625,33.85912191,169.52,169.48,0.04237372]
[1748460995832,0.03912191,169.52,169.48,0.04237372]
[1748460997128,0.03912191,169.52,169.5,5.8981]
[1748460997330,0.03912191,169.52,169.48,0.04237372]
[1748461000634,5.8985,169.5,169.48,0.04237372]
[1748461000824,0.03912191,169.52,169.48,0.04237372]
[1748461001632,5.8997,169.46,169.42,5.9009]
[1748461001932,33.82,169.51,169.38,33.82]
[1748461002128,33.82,169.51,169.38,49.97603952]
[1748461002832,0.03853048,169.46,169.45,5.9]
[1748461003028,0.03713948,169.47,169.43,0.03937613]
[1748461003228,0.03713948,169.47,169.43,33.87937613]
[1748461003734,0.03713948,169.47,169.46,5.8996]
[1748461006430,3.948e-05,169.47,169.46,5.8996]
[1748461007434,33.84,169.59,169.46,22.05603952]
[1748461007737,33.84,169.59,169.46,16.15603952]
[1748461007935,39.7353,169.59,169.56,5.8961]
[1748461008131,39.7353,169.59,169.52,33.84]
[1748461008439,0.04496918,169.57,169.54,0.03823147]
[1748461009033,5.8965,169.55,169.54,0.03823147]
[1748461012239,16.2010087,169.57,169.43,33.84]
[1748461012433,16.15603952,169.57,169.45,2.0473]
[1748461012633,16.15603952,169.57,169.45,35.8873]
[1748461012837,33.84,169.59,169.5,5.898]
[1748461013241,0.04291111,169.56,169.53,0.03908563]
[1748461014344,5.8968,169.54,169.53,0.03908563]
[1748461014843,5.93931111,169.56,169.53,5.93618563]
[1748461015044,0.04291111,169.56,169.53,0.03908563]
[1748461015442,0.04291111,169.56,169.54,5.8966]
[1748461015639,0.04291111,169.56,169.53,0.03908563]
[1748461016040,0.04291111,169.56,169.54,5.8967]
[1748461016840,0.04291111,169.56,169.55,5.8965]
[1748461017643,0.04291111,169.56,169.53,0.03908563]
[1748461018146,5.93931111,169.56,169.53,0.03908563]
[1748461018647,0.04291111,169.56,169.53,0.03908563]
[1748461019246,5.93931111,169.56,169.53,5.93628563]
[1748461020044,0.04291111,169.56,169.53,0.03908563]
[1748461020549,5.8968,169.54,169.53,0.03908563]
[1748461021153,5.8965,169.55,169.53,0.03908563]
[1748461021651,0.04291111,169.56,169.53,0.03908563]
[1748461021960,5.8967,169.55,169.53,0.03908563]
[1748461022746,5.8968,169.54,169.53,0.03908563]
[1748461023249,33.84,169.54,169.45,35.8873]
[1748461023850,33.84,169.54,169.45,33.84]
[1748461024345,0.04493647,169.51,169.48,0.0451153]
[1748461025144,5.8982,169.5,169.48,0.0451153]
[1748461025353,0.04493647,169.51,169.48,0.0451153]
[1748461026158,5.8986,169.49,169.48,0.0451153]
[1748461028554,5.8999,169.46,169.33,11.808]
[1748461028755,35.02,169.49,169.36,513.6193]
[1748461029160,4.0135,169.54,169.37,16.15603952]
[1748461029459,35.02,169.53,169.47,5.8991]
[1748461029651,0.03843669,169.52,169.43,35.02]
[1748461029851,0.03754915,169.49,169.43,35.02]
[1748461030354,0.03754915,169.49,169.44,4.1332]
[1748461030658,0.03754915,169.49,169.48,5.8989]
[1748461031254,0.03754915,169.49,169.47,5.8991]
[1748461032957,0.03754915,169.49,169.48,5.8989]
[1748461033661,35.02,169.57,169.47,0.04376687]
[1748461033871,35.02,169.57,169.44,13.8425042]
[1748461034161,5.8967,169.55,169.51,5.8976]
[1748461034559,35.02,169.57,169.51,5.8976]
[1748461034763,5.8967,169.55,169.52,0.04236256]
[1748461034963,0.03903866,169.56,169.52,0.04236256]
[1748461035960,5.8968,169.55,169.52,0.04236256]
[1748461036164,0.03903866,169.56,169.52,0.04236256]
[1748461036363,5.897,169.54,169.52,0.04236256]
[1748461036664,0.03903866,169.56,169.52,0.04236256]
[1748461037163,5.8972,169.53,169.52,0.04236256]
[1748461040659,5.8994,169.47,169.43,35.02]
[1748461040871,35.02,169.51,169.43,35.02]
[1748461041262,35.02,169.51,169.47,5.8991]
[1748461041457,35.02,169.51,169.43,35.02]
[1748461041662,0.04442656,169.49,169.47,5.8989]
[1748461042166,0.04442656,169.49,169.48,5.8989]
[1748461043160,40.9166,169.55,169.44,9.7093042]
[1748461043868,40.9166,169.55,169.52,5.8975]
[1748461044170,5.8969,169.54,169.52,0.03775238]
[1748461045862,5.8972,169.53,169.52,0.03775238]
[1748461046266,35.05926903,169.55,169.52,0.03775238]
[1748461047059,5.897,169.54,169.52,0.03775238]
[1748461047468,35.05926903,169.55,169.52,0.03775238]
[1748461047861,5.8971,169.54,169.52,0.03775238]
[1748461048383,40.95586903,169.55,169.52,0.03775238]
[1748461048562,35.05926903,169.55,169.52,0.03775238]
[1748461048968,0.03926903,169.55,169.52,0.03775238]
[1748461049172,0.03926903,169.55,169.53,5.8968]
[1748461049771,0.03926903,169.55,169.52,0.03775238]
[1748461049772,0.03926903,169.55,169.54,5.8967]
[1748461052971,0.03926903,169.55,169.53,5.8969]
[1748461053871,0.03926903,169.55,169.54,5.8967]
[1748461054474,0.03926903,169.55,169.53,5.897]
[1748461054775,0.03926903,169.55,169.52,0.03775238]
[1748461055370,0.03926903,169.55,169.53,5.8971]
[1748461056675,0.03926903,169.55,169.54,5.8967]
[1748461057977,0.03926903,169.55,169.53,5.897]
[1748461059167,0.03926903,169.55,169.54,5.8968]